lending/lending_fUSD_20250218
["ID","MTS","AMOUNT","RATE_DAILY","PERIOD"]
[353516380,1739892672217,-480.94,0.00020399,3]
[353516381,1739892672227,-500.0,0.00020399,3]
[353516382,1739892672236,-500.0,0.00020399,3]
[353516383,1739892672246,-500.0,0.00020399,3]
[353516384,1739892672255,-500.0,0.00020399,3]
[353516385,1739892672264,-500.0,0.00020399,3]
[353516386,1739892672273,-500.0,0.00020399,3]
[353516387,1739892672283,-500.0,0.00020399,3]
[353516388,1739892672293,-500.0,0.00020399,3]
[353516389,1739892672302,-226.06,0.00020399,3]
[353516390,1739892672313,-500.0,0.00020399,3]
[353516391,1739892672323,-500.0,0.00020399,3]
[353516392,1739892672333,-500.0,0.00020399,3]
[353516393,1739892672342,-168.31,0.00020399,3]
[353516394,1739892672351,-500.0,0.00020399,3]
[353516395,1739892672360,-500.0,0.00020399,3]
[353516396,1739892672371,-500.0,0.00020399,3]
[353516397,1739892672381,-500.0,0.00020399,3]
[353516398,1739892672391,-500.0,0.00020399,3]
[353516399,1739892672400,-321.97,0.00020399,3]
[353516400,1739892672410,-500.0,0.00020399,3]
[353516401,1739892672420,-590.41,0.00020399,3]
[353516402,1739892672429,-500.0,0.00020399,3]
[353516403,1739892672439,-500.0,0.00020399,3]
[353516404,1739892672448,-500.0,0.00020399,3]
[353516405,1739892672457,-500.0,0.00020399,3]
[353516406,1739892672468,-500.0,0.00020399,3]
[353516407,1739892672477,-500.0,0.00020399,3]
[353516408,1739892672486,-500.0,0.00020399,3]
[353516409,1739892672495,-547.21181629,0.00020399,3]
[353516410,1739892672505,-500.0,0.00020399,3]
[353516411,1739892672515,-500.0,0.00020399,3]
[353516412,1739892672525,-500.0,0.00020399,3]
[353516413,1739892672534,-500.0,0.00020399,3]
[353516414,1739892672544,-500.0,0.00020399,3]
[353516415,1739892672555,-500.0,0.00020399,3]
[353516416,1739892672565,-500.0,0.00020399,3]
[353516417,1739892672574,-500.0,0.00020399,3]
[353516418,1739892672586,-500.0,0.00020399,3]
[353516419,1739892672596,-500.0,0.00020399,3]
[353516420,1739892672606,-529.33,0.00020399,3]
[353516421,1739892672616,-500.0,0.00020399,3]
[353516422,1739892672626,-500.0,0.00020399,3]
[353516423,1739892672635,-500.0,0.00020399,3]
[353516424,1739892672645,-500.0,0.00020399,3]
[353516425,1739892672655,-194.55,0.00020399,3]
[353516426,1739892672665,-500.0,0.00020399,3]
[353516427,1739892672675,-500.0,0.00020399,3]
[353516428,1739892672684,-500.0,0.00020399,3]
[353516429,1739892672695,-500.0,0.00020399,3]
[353516430,1739892672705,-500.0,0.00020399,3]
[353516431,1739892672716,-500.0,0.00020399,3]
[353516432,1739892672727,-500.0,0.00020399,3]
[353516433,1739892672736,-500.0,0.00020399,3]
[353516434,1739892672745,-500.0,0.00020399,3]
[353516435,1739892672755,-500.0,0.00020399,3]
[353516436,1739892672765,-500.0,0.00020399,3]
[353516437,1739892672775,-500.0,0.00020399,3]
[353516438,1739892672784,-500.0,0.00020399,3]
[353516439,1739892672794,-500.0,0.00020399,3]
[353516440,1739892672804,-477.13,0.00020399,3]
[353516441,1739892672814,-389.62,0.00020399,3]
[353516442,1739892672823,-500.0,0.00020399,3]
[353516443,1739892672837,-500.0,0.00020399,3]
[353516444,1739892672846,-500.0,0.00020399,3]
[353516445,1739892672856,-500.0,0.00020399,3]
[353516446,1739892672866,-500.0,0.00020399,3]
[353516447,1739892672876,-500.0,0.00020399,3]
[353516448,1739892672885,-267.31,0.00020399,3]
[353516449,1739892672895,-500.0,0.00020399,3]
[353516450,1739892672904,-500.0,0.00020399,3]
[353516451,1739892672913,-500.0,0.00020399,3]
[353516452,1739892672923,-500.0,0.00020399,3]
[353516453,1739892672932,-500.0,0.00020399,3]
[353516454,1739892672942,-500.0,0.00020399,3]
[353516455,1739892672951,-500.0,0.00020399,3]
[353516456,1739892672961,-500.0,0.00020399,3]
[353516457,1739892672971,-500.0,0.00020399,3]
[353516458,1739892672981,-500.0,0.00020399,3]
[353516459,1739892672991,-500.0,0.00020399,3]
[353516460,1739892673000,-500.0,0.00020399,3]
[353516461,1739892673009,-500.0,0.00020399,3]
[353516462,1739892673018,-244.15,0.00020399,3]
[353516463,1739892673027,-500.0,0.00020399,3]
[353516464,1739892673036,-500.0,0.00020399,3]
[353516465,1739892673045,-500.0,0.00020399,3]
[353516466,1739892673054,-469.57,0.00020399,3]
[353516467,1739892673064,-500.0,0.00020399,3]
[353516468,1739892673205,-500.0,0.00020399,3]
[353516469,1739892673215,-500.0,0.00020399,3]
[353516470,1739892673224,-500.0,0.00020399,3]
[353516471,1739892673234,-500.0,0.00020399,3]
[353516472,1739892673246,-500.0,0.00020399,3]
[353516473,1739892673256,-500.0,0.00020399,3]
[353516474,1739892673267,-414.07,0.00020399,3]
[353516475,1739892673277,-500.0,0.00020399,3]
[353516476,1739892673287,-621.6,0.00020399,3]
[353516477,1739892673297,-500.0,0.00020399,3]
[353516478,1739892673307,-500.0,0.00020399,3]
[353516479,1739892673317,-500.0,0.00020399,3]
[353516480,1739892673327,-500.0,0.00020399,3]
[353516481,1739892673341,-500.0,0.00020399,3]
[353516482,1739892673351,-500.0,0.00020399,3]
[353516483,1739892673361,-269.53,0.00020399,3]
[353516484,1739892673371,-1259.18,0.00020399,2]
[353516485,1739892673381,-500.0,0.00020399,3]
[353516486,1739892673391,-500.0,0.00020399,3]
[353516487,1739892673401,-500.0,0.00020399,3]
[353516488,1739892673411,-500.0,0.00020399,3]
[353516489,1739892673421,-500.0,0.00020399,3]
[353516490,1739892673430,-500.0,0.00020399,3]
[353516491,1739892673440,-500.0,0.00020399,3]
[353516492,1739892673450,-500.0,0.00020399,3]
[353516493,1739892673460,-573.66,0.00020399,3]
[353516494,1739892673470,-500.0,0.00020399,3]
[353516495,1739892673480,-500.0,0.00020399,3]
[353516496,1739892673490,-500.0,0.00020399,3]
[353516497,1739892673499,-500.0,0.00020399,3]
[353516498,1739892673509,-500.0,0.00020399,3]
[353516499,1739892673519,-494.58280449,0.00020399,3]
[353516500,1739892673529,-500.0,0.00020399,3]
[353516501,1739892673539,-500.0,0.00020399,3]
[353516502,1739892673548,-500.0,0.00020399,3]
[353516503,1739892673558,-198.26,0.00020399,3]
[353516504,1739892673567,-500.0,0.00020399,3]
[353516505,1739892673577,-500.0,0.00020399,3]
[353516506,1739892673591,-500.0,0.00020399,3]
[353516507,1739892673601,-500.0,0.00020399,3]
[353516508,1739892673610,-500.0,0.00020399,3]
[353516509,1739892673620,-496.71,0.00020399,3]
[353516510,1739892673630,-500.0,0.00020399,3]
[353516511,1739892673639,-500.0,0.00020399,3]
[353516512,1739892673650,-500.0,0.00020399,3]
[353516513,1739892673659,-500.0,0.00020399,3]
[353516514,1739892673670,-500.0,0.00020399,3]
[353516515,1739892673679,-500.0,0.00020399,3]
[353516516,1739892673689,-500.0,0.00020399,3]
[353516517,1739892673698,-500.0,0.00020399,3]
[353516518,1739892673708,-482.94,0.00020399,3]
[353516519,1739892673718,-500.0,0.00020399,3]
[353516520,1739892673728,-500.0,0.00020399,3]
[353516521,1739892673740,-500.0,0.00020399,3]
[353516522,1739892673749,-500.0,0.00020399,3]
[353516523,1739892673759,-265.44548746,0.00020399,3]
[353516524,1739892673768,-500.0,0.00020399,3]
[353516525,1739892673778,-500.0,0.00020399,3]
[353516526,1739892673787,-500.0,0.00020399,3]
[353516527,1739892673797,-500.0,0.00020399,3]
[353516528,1739892673809,-365.83,0.00020399,3]
[353516529,1739892673818,-500.0,0.00020399,3]
[353516530,1739892673827,-500.0,0.00020399,3]
[353516531,1739892673840,-199.8,0.00020399,3]
[353516532,1739892673849,-500.0,0.00020399,3]
[353516533,1739892673858,-500.0,0.00020399,3]
[353516534,1739892673868,-500.0,0.00020399,3]
[353516535,1739892673881,-500.0,0.00020399,3]
[353516536,1739892673890,-500.0,0.00020399,3]
[353516537,1739892673899,-500.0,0.00020399,3]
[353516538,1739892673909,-500.0,0.00020399,3]
[353516539,1739892673918,-500.0,0.00020399,3]
[353516540,1739892673929,-500.0,0.00020399,3]
[353516541,1739892673938,-500.0,0.00020399,3]
[353516542,1739892673947,-500.0,0.00020399,3]
[353516543,1739892673957,-231.8,0.00020399,3]
[353516544,1739892673967,-500.0,0.00020399,3]
[353516545,1739892673977,-500.0,0.00020399,3]
[353516546,1739892673987,-500.0,0.00020399,3]
[353516547,1739892673996,-500.0,0.00020399,3]
[353516548,1739892674006,-609.3,0.00020399,3]
[353516549,1739892674015,-500.0,0.00020399,3]
[353516550,1739892674025,-500.0,0.00020399,3]
[353516551,1739892674044,-500.0,0.00020399,3]
[353516552,1739892674053,-346.81,0.00020399,3]
[353516553,1739892674063,-500.0,0.00020399,3]
[353516554,1739892674072,-500.0,0.00020399,3]
[353516555,1739892674082,-500.0,0.00020399,3]
[353516556,1739892674092,-500.0,0.00020399,3]
[353516557,1739892674101,-500.0,0.00020399,3]
[353516558,1739892674111,-322.83,0.00020399,3]
[353516559,1739892674120,-691.11,0.00020399,3]
[353516560,1739892674129,-691.11,0.00020399,3]
[353516561,1739892674138,-691.11,0.00020399,3]
[353516562,1739892674147,-691.11,0.00020399,3]
[353516563,1739892674156,-691.11,0.00020399,3]
[353516564,1739892674165,-691.11,0.00020399,3]
[353516565,1739892674174,-691.11,0.00020399,3]
[353516566,1739892674183,-691.11,0.00020399,3]
[353516567,1739892674193,-691.11,0.00020399,3]
[353516568,1739892674203,-691.11,0.00020399,3]
[353516569,1739892674212,-691.11,0.00020399,3]
[353516570,1739892674222,-691.11,0.00020399,3]
[353516571,1739892674232,-691.11,0.00020399,3]
[353516572,1739892674241,-691.11,0.00020399,3]
[353516573,1739892674251,-691.11,0.00020399,3]
[353516574,1739892674260,-691.11,0.00020399,3]
[353516575,1739892674270,-500.0,0.00020399,3]
[353516576,1739892674280,-691.11,0.00020399,3]
[353516577,1739892674289,-500.0,0.00020399,3]
[353516578,1739892674299,-500.0,0.00020399,3]
[353516579,1739892674309,-691.11,0.00020399,3]
[353516580,1739892674318,-509.559999,0.00020399,3]
[353516581,1739892674328,-691.11,0.00020399,3]
[353516582,1739892674339,-691.11,0.00020399,3]
[353516583,1739892674349,-691.15,0.00020399,3]
[353516584,1739892674358,-500.0,0.00020399,3]
[353516585,1739892674368,-500.0,0.00020399,3]
[353516586,1739892674377,-500.0,0.00020399,3]
[353516587,1739892674387,-500.0,0.00020399,3]
[353516588,1739892674396,-500.0,0.00020399,3]
[353516589,1739892674406,-486.49,0.00020399,3]
[353516590,1739892674415,-1197.0,0.00020399,2]
[353516591,1739892674425,-101347.62788464,0.000204,2]
[353516592,1739892674636,-376.87925389,0.000204,2]
[353516593,1739892674647,-420.4240141,0.000204,2]
[353516594,1739892674659,-1006.23121975,0.000204,2]
[353516595,1739892674674,-500.0,0.00019726,3]
[353516596,1739892674684,-47319.27705159,0.000204,2]
[353516597,1739892674695,-70442.08611544,0.000204,2]
[353516598,1739892674706,-950.95,0.000204,2]
[353516599,1739892674722,-7663.77069045,0.000204,2]
[353516600,1739892674734,-559.18729511,0.000204,2]
[353516601,1739892675971,169.13,8.767e-05,2]
[353516616,1739893827448,328.22,8.767e-05,2]
[353516627,1739893832313,-200.0,0.0001,2]
[353516629,1739893832325,-152.85778854,0.0001,2]
[353516631,1739893832336,-167.75041321,0.00010899,2]
[353516634,1739893832348,-151.0,0.00010956,2]
[353516635,1739893832359,-500.0,0.00010956,2]
[353516637,1739893832371,-19635.46743913,0.00010962,2]
[353516639,1739893832382,-200.0,0.00011,2]
[353516641,1739893832395,-200.0,0.00011,2]
[353516643,1739893832408,-500.0,0.00011011,2]
[353516644,1739893832418,-500.0,0.00011066,2]
[353516645,1739893832430,-500.0,0.00011121,2]
[353516646,1739893832442,-500.0,0.00011176,2]
[353516647,1739893832452,-500.0,0.00011231,2]
[353516648,1739893832464,-150.0,0.00011479,2]
[353516649,1739893832475,-166.1,0.00011504,2]
[353516650,1739893832485,-182.71,0.00012052,2]
[353516651,1739893832495,-3581.00766718,0.00012139,2]
[353516652,1739893832507,-1500.0,0.0001218,2]
[353516653,1739893832518,-2387.33844479,0.00012484,2]
[353516654,1739893832528,-200.981,0.000126,2]
[353516655,1739893832540,-1193.66922239,0.00012705,2]
[353516656,1739893832551,-2289.60765444,0.00012869,2]
[353516657,1739893832562,-221.0791,0.00013148,2]
[353516658,1739893832573,-400.13,0.00013364,2]
[353516659,1739893832583,-302.0,0.00013696,2]
[353516660,1739893832593,-150.0,0.0001393,2]
[353516668,1739893832844,-150.0,0.00013999,2]
[353516669,1739893832861,-168.05,0.00013999,2]
[353516670,1739893832871,-160.04,0.00014068,2]
[353516671,1739893832881,-321.18,0.000147,2]
[353516673,1739893832891,-168.05,0.00014769,2]
[353516675,1739893832901,-1099.85258163,0.000149,2]
[353516677,1739893832911,-448.08,0.00014939,2]
[353516679,1739893832922,-250.0,0.00014944,2]
[353516681,1739893832933,-1970.92,0.00014951,2]
[353516682,1739893832943,-7460.0,0.00015,2]
[353516683,1739893832953,-255.0,0.00015119,2]
[353516684,1739893832963,-1000.0,0.00015162,2]
[353516685,1739893832973,-328.22,0.00015516,2]
[353516686,1739893832982,-168.05,0.00015539,2]
[353516687,1739893832992,-400.13,0.00015628,2]
[353516688,1739893833001,-151.93,0.00015951,2]
[353516689,1739893833011,-1099.85258158,0.00015973,2]
[353516690,1739893833020,-1106.72,0.00015977,2]
[353516691,1739893833030,-168.05,0.0001631,2]
[353516692,1739893833039,-2000.0,0.00016365,2]
[353516693,1739893833049,-5800.0,0.00016406,2]
[353516694,1739893833059,-5800.0,0.00016415,2]
[353516695,1739893833072,-5800.0,0.00016423,2]
[353516696,1739893833082,-5800.0,0.00016432,2]
[353516697,1739893833091,-5800.0,0.0001644,2]
[353516698,1739893833100,-500.0,0.00016464,2]
[353516699,1739893833108,-712.59,0.00016503,2]
[353516700,1739893833116,-712.59,0.00016508,2]
[353516701,1739893833124,-712.59,0.00016512,2]
[353516702,1739893833134,-712.59,0.00016517,2]
[353516703,1739893833145,-712.59,0.00016521,2]
[353516704,1739893833154,-712.59,0.00016525,2]
[353516705,1739893833163,-712.59,0.0001653,2]
[353516706,1739893833171,-712.59,0.00016534,2]
[353516707,1739893833180,-2889.342,0.00016538,2]
[353516708,1739893833189,-170.841,0.00016538,2]
[353516709,1739893833198,-712.59,0.00016538,2]
[353516710,1739893833208,-712.59,0.00016543,2]
[353516711,1739893833218,-712.59,0.00016547,2]
[353516712,1739893833228,-712.59,0.00016551,2]
[353516713,1739893833238,-712.59,0.00016556,2]
[353516714,1739893833250,-712.59,0.0001656,2]
[353516715,1739893833260,-712.59,0.00016564,2]
[353516716,1739893833270,-712.59,0.00016569,2]
[353516717,1739893833280,-712.59,0.00016573,2]
[353516718,1739893833289,-712.59,0.00016578,2]
[353516719,1739893833299,-712.59,0.00016582,2]
[353516720,1739893833309,-712.59,0.00016586,2]
[353516721,1739893833323,-151.93,0.00016625,2]
[353516722,1739893833333,-475.39,0.00016658,30]
[353516723,1739893833342,-176.46,0.00016712,2]
[353516724,1739893833352,-9999.99,0.00016922,2]
[353516725,1739893833362,-299.99,0.00016922,4]
[353516726,1739893833373,-150.99,0.00016922,2]
[353516727,1739893833384,-6341.76,0.00016922,2]
[353516728,1739893833394,-1099.85258158,0.00017046,2]
[353516729,1739893833404,-1000.0,0.00017057,2]
[353516730,1739893833415,-151.93,0.000173,2]
[353516731,1739893833426,-11272.22751595,0.00017727,2]
[353516732,1739893833436,-600.0,0.00017808,2]
[353516733,1739893833446,-300.0,0.00017874,2]
[353516734,1739893833457,-400.13,0.00017892,2]
[353516735,1739893833467,-151.93,0.00017975,2]
[353516736,1739893833478,-1106.72,0.00017975,2]
[353516737,1739893833488,-200.0,0.00018082,2]
[353516738,1739893833499,-150.429,0.00018103,2]
[353516739,1739893833508,-639.0,0.00018103,2]
[353516740,1739893833519,-569.0,0.00018103,2]
[353516741,1739893833529,-1786.0,0.00018103,2]
[353516742,1739893833539,-908.0,0.00018103,2]
[353516743,1739893833548,-1258.001,0.00018103,2]
[353516744,1739893833558,-999.478,0.00018103,2]
[353516745,1739893833569,-150.0,0.00018103,2]
[353516746,1739893833579,-1099.85258158,0.00018119,2]
[353516747,1739893833589,-150.0,0.00018321,2]
[353516748,1739893833599,-150.0,0.00018321,2]
[353516749,1739893833609,-150.0,0.00018321,2]
[353516750,1739893833619,-500.0,0.00018329,2]
[353516751,1739893833629,-1000.0,0.00018522,2]
[353516752,1739893833639,-151.93,0.00018649,2]
[353516753,1739893833648,-150.0,0.00018728,2]
[353516754,1739893833658,-957.78807074,0.00018932,2]
[353516755,1739893833668,-1000.0,0.00018952,2]
[353516756,1739893833678,-957.78807065,0.00018983,2]
[353516757,1739893833687,-1594.0,0.00019029,2]
[353516758,1739893833697,-500.0,0.00019032,2]
[353516759,1739893833707,-957.78807065,0.00019035,2]
[353516760,1739893833717,-957.78807065,0.00019086,2]
[353516761,1739893833727,-500.0,0.00019132,2]
[353516762,1739893833736,-150.0,0.00019135,2]
[353516763,1739893833746,-957.78807065,0.00019138,2]
[353516764,1739893833756,-2000.0,0.00019178,2]
[353516765,1739893833766,-957.78807065,0.00019189,2]
[353516766,1739893833776,-1099.85258158,0.00019192,2]
[353516767,1739893833786,-2000.0,0.00019209,2]
[353516768,1739893833796,-200.0,0.00019221,2]
[353516769,1739893833806,-1594.0,0.00019225,2]
[353516770,1739893833818,-500.0,0.00019232,2]
[353516771,1739893833828,-2000.0,0.00019239,2]
[353516772,1739893833838,-475.39,0.00019242,30]
[353516773,1739893833848,-300.0,0.00019244,2]
[353516774,1739893833858,-2000.0,0.00019269,2]
[353516775,1739893833868,-2000.0,0.000193,2]
[353516776,1739893833878,-151.93,0.00019324,2]
[353516777,1739893833887,-2000.0,0.0001933,2]
[353516778,1739893833897,-500.0,0.00019332,2]
[353516779,1739893833907,-150.0,0.00019338,4]
[353516780,1739893833916,-2000.0,0.00019361,2]
[353516781,1739893833926,-2000.0,0.00019391,2]
[353516782,1739893833936,-1594.0,0.00019421,2]
[353516783,1739893833945,-2000.0,0.00019422,2]
[353516784,1739893833955,-500.0,0.00019432,2]
[353516785,1739893833964,-2000.0,0.00019452,2]
[353516786,1739893833974,-2000.0,0.00019482,2]
[353516787,1739893833984,-2000.0,0.00019513,2]
[353516788,1739893833994,-500.0,0.00019532,2]
[353516789,1739893834004,-150.0,0.00019542,4]
[353516790,1739893834014,-2000.0,0.00019543,2]
[353516791,1739893834024,-2000.0,0.00019574,2]
[353516792,1739893834033,-2000.0,0.00019604,2]
[353516793,1739893834043,-1594.0,0.00019618,2]
[353516794,1739893834052,-507.87715458,0.00019618,2]
[353516795,1739893834061,-16253.57589621,0.00019625,2]
[353516796,1739893834286,-607.75,0.00019625,2]
[353516797,1739893834306,-724.0,0.00019625,2]
[353516798,1739893834321,-1337.00000001,0.00019625,2]
[353516799,1739893834333,-4870.57379111,0.00019625,2]
[353516800,1739893834343,-175.94871696,0.00019626,2]
[353516801,1739893834353,-2350.79432576,0.00019626,2]
[353516802,1739893834366,-478.31588386,0.00019626,2]
[353516803,1739893834378,-960.27625109,0.00019626,2]
[353516804,1739893834389,-258.60549868,0.00019626,2]
[353516805,1739893834401,-305.98,0.00019626,2]
[353516806,1739893834435,-646.02804061,0.00019626,2]
[353516807,1739893834445,-500.0,0.00019632,2]
[353516808,1739893834454,-91.97195939,0.00019635,2]
[353516809,1739893834466,-788.58254264,0.00019635,2]
[353516810,1739893834477,-1119.44549797,0.00019635,2]
[353516811,1739893834487,-2000.0,0.00019665,2]
[353516812,1739893834496,-2000.0,0.00019696,2]
[353516813,1739893834506,-14460.53690063,0.00019696,2]
[353516819,1739893838268,-289.06,0.000147,2]
[353516820,1739893838278,-1118.186,0.00018103,2]
[353516821,1739893838287,-957.78807065,0.00019241,2]
[353516822,1739893838300,-170.1353616,0.00019616,2]
[353516823,1739893838310,-9332.36278669,0.00019696,2]
[353516824,1739893838322,-27117.737794,0.00019706,3]
[353516825,1739893838331,-18897.79348706,0.00019706,3]
[353516826,1739893838489,-4593.75292679,0.00019706,3]
[353516827,1739893838500,-6265.63227047,0.00019706,3]
[353516828,1739893838511,-364.12651025,0.00019706,3]
[353516829,1739893838522,-1914.16294695,0.00019706,3]
[353516830,1739893838533,-7558.00953428,0.00019706,3]
[353516831,1739893838543,-39566.24003766,0.00019716,3]
[353516832,1739893838554,-964.44348,0.00019716,3]
[353516835,1739893838571,-1800.0,0.00019716,3]
[353516842,1739893840572,-160.0,0.00018103,2]
[353516843,1739893840582,-125.81595013,0.00018103,2]
[353516844,1739893840594,-24.18404987,0.00018103,2]
[353516845,1739893840604,-483.29665434,0.00019716,3]
[353516846,1739893840615,-1952.48552385,0.00019716,3]
[353516847,1739893840627,-529338.96060415,0.00019716,3]
[353516848,1739893840637,-334.92525518,0.00019716,2]
[353516849,1739893840647,-500.0,0.00019726,3]
[353516850,1739893840657,-500.0,0.00019726,3]
[353516851,1739893840666,-500.0,0.00019726,3]
[353516852,1739893840676,-502.08351601,0.00019726,3]
[353516853,1739893840686,-500.0,0.00019726,3]
[353516854,1739893840695,-500.0,0.00019726,3]
[353516855,1739893840704,-501.37237656,0.00019726,3]
[353516856,1739893840714,-500.0,0.00019726,3]
[353516857,1739893840723,-500.0,0.00019726,3]
[353516858,1739893840733,-500.0,0.00019726,3]
[353516859,1739893840742,-500.0,0.00019726,3]
[353516860,1739893840752,-500.0,0.00019726,3]
[353516861,1739893840762,-500.0,0.00019726,3]
[353516862,1739893840772,-502.0320031,0.00019726,3]
[353516863,1739893840782,-500.0,0.00019726,3]
[353516864,1739893840792,-372.35822243,0.00019726,3]
[353516865,1739893840802,-500.0,0.00019726,3]
[353516866,1739893840811,-500.0,0.00019726,3]
[353516867,1739893840822,-500.0,0.00019726,3]
[353516868,1739893840832,-504.74650064,0.00019726,3]
[353516869,1739893840841,-502.29365168,0.00019726,3]
[353516870,1739893840851,-500.0,0.00019726,3]
[353516871,1739893840861,-500.0,0.00019726,3]
[353516872,1739893840871,-509.88341455,0.00019726,3]
[353516873,1739893840880,-500.0,0.00019726,3]
[353516874,1739893840890,-502.34789651,0.00019726,3]
[353516875,1739893840899,-500.0,0.00019726,3]
[353516876,1739893840909,-500.0,0.00019726,3]
[353516877,1739893840918,-519.8748427,0.00019726,3]
[353516878,1739893840928,-500.0,0.00019726,3]
[353516879,1739893840938,-500.0,0.00019726,3]
[353516880,1739893840948,-500.0,0.00019726,3]
[353516881,1739893840959,-500.0,0.00019726,3]
[353516882,1739893840969,-500.0,0.00019726,3]
[353516883,1739893840979,-500.0,0.00019726,3]
[353516884,1739893840988,-500.0,0.00019726,3]
[353516885,1739893840998,-500.0,0.00019726,3]
[353516886,1739893841007,-504.10688933,0.00019726,3]
[353516887,1739893841017,-500.0,0.00019726,3]
[353516888,1739893841028,-500.0,0.00019726,3]
[353516889,1739893841038,-500.0,0.00019726,3]
[353516890,1739893841048,-500.0,0.00019726,3]
[353516891,1739893841059,-694.06,0.00019726,3]
[353516892,1739893841069,-694.06,0.00019726,3]
[353516893,1739893841083,-430.81022741,0.00019726,3]
[353516895,1739893841108,-263.24977259,0.00019726,3]
[353516896,1739893841118,-471.25716435,0.00019726,3]
[353516897,1739893841130,-222.80283565,0.00019726,3]
[353516898,1739893841146,-247.01023396,0.00019726,3]
[353516899,1739893841158,-447.04976604,0.00019726,3]
[353516900,1739893841168,-694.06,0.00019726,3]
[353516901,1739893841179,-266.38876099,0.00019726,3]
[353516902,1739893841192,-427.67123901,0.00019726,3]
[353516903,1739893841201,-694.06,0.00019726,3]
[353516904,1739893841211,-500.0,0.00019726,3]
[353516905,1739893841223,-694.06,0.00019726,3]
[353516906,1739893841233,-694.06,0.00019726,3]
[353516908,1739893841243,-694.06,0.00019726,3]
[353516909,1739893841253,-500.0,0.00019726,3]
[353516910,1739893841425,-694.06,0.00019726,3]
[353516911,1739893841435,-694.06,0.00019726,3]
[353516912,1739893841445,-694.06,0.00019726,3]
[353516913,1739893841454,-694.06,0.00019726,3]
[353516914,1739893841463,-694.06,0.00019726,3]
[353516915,1739893841473,-694.06,0.00019726,3]
[353516916,1739893841483,-694.06,0.00019726,3]
[353516917,1739893841492,-694.06,0.00019726,3]
[353516918,1739893841502,-694.06,0.00019726,3]
[353516919,1739893841512,-694.06,0.00019726,3]
[353516920,1739893841523,-694.06,0.00019726,3]
[353516921,1739893841532,-694.06,0.00019726,3]
[353516922,1739893841542,-694.21411256,0.00019726,3]
[353516923,1739893841552,-509.24587225,0.00019726,3]
[353516924,1739893841561,-500.0,0.00019726,3]
[353516925,1739893841575,-500.0,0.00019726,3]
[353516926,1739893841586,-501.20077664,0.00019726,3]
[353516927,1739893841596,-500.0,0.00019726,3]
[353516928,1739893841607,-500.0,0.00019726,3]
[353516929,1739893841617,-500.0,0.00019726,3]
[353516930,1739893841627,-500.0,0.00019726,3]
[353516931,1739893841636,-500.0,0.00019726,3]
[353516932,1739893841646,-501.96053389,0.00019726,3]
[353516933,1739893841655,-500.0,0.00019726,3]
[353516934,1739893841666,-500.0,0.00019726,3]
[353516935,1739893841675,-501.3463335,0.00019726,3]
[353516936,1739893841685,-504.35514761,0.00019726,3]
[353516937,1739893841694,-500.0,0.00019726,3]
[353516938,1739893841704,-500.0,0.00019726,3]